bitfinex-derivatives/quotes_BTCF0:USTF0_20250830
["timestamp","ask_amount","ask_price","bid_price","bid_amount"]
[1756517728578,0.05553,108180.0,108170.0,0.77029503]
[1756517728978,0.10245499,108190.0,108180.0,0.05282]
[1756517729176,0.10245499,108190.0,108180.0,0.77029503]
[1756517729177,0.94949499,108190.0,108180.0,0.77029503]
[1756517730773,0.95149499,108190.0,108180.0,0.77029503]
[1756517731478,0.94949499,108190.0,108180.0,0.77029503]
[1756517731680,0.95049499,108190.0,108180.0,0.77029503]
[1756517732375,0.10345499,108190.0,108180.0,0.77029503]
[1756517732577,0.06887499,108190.0,108180.0,0.77029503]
[1756517732981,0.10413499,108190.0,108180.0,0.77029503]
[1756517733180,0.12720013,108190.0,108180.0,0.77029503]
[1756517736481,0.09194013,108190.0,108180.0,0.77029503]
[1756517737286,0.07099013,108190.0,108180.0,1.12697006]
[1756517737784,0.07099013,108190.0,108180.0,0.77029503]
[1756517737985,0.09374013,108190.0,108180.0,1.12697006]
[1756517738376,0.09274013,108190.0,108180.0,1.12697006]
[1756517738579,0.09274013,108190.0,108180.0,0.77029503]
[1756517740286,0.09274013,108190.0,108180.0,1.12697006]
[1756517741487,0.06999013,108190.0,108180.0,1.12697006]
[1756517742089,0.04692499,108190.0,108180.0,1.12697006]
[1756517742291,1.31793338,108210.0,108180.0,1.34505006]
[1756517742486,0.12275,108200.0,108190.0,0.74026503]
[1756517742681,0.22684968,108200.0,108190.0,0.74026503]
[1756517742987,0.22684968,108200.0,108190.0,0.77353503]
[1756517743180,0.20376074,108200.0,108190.0,0.77353503]
[1756517743381,0.14575074,108200.0,108190.0,1.6410471]
[1756517745489,0.16850074,108200.0,108190.0,0.7941271]
[1756517745692,0.20376074,108200.0,108190.0,1.6410471]
[1756517745892,0.20476074,108200.0,108190.0,1.6410471]
[1756517746084,0.20476074,108200.0,108190.0,1.6410071]
[1756517746280,0.20476074,108200.0,108190.0,0.7941271]
[1756517748290,0.16950074,108200.0,108190.0,0.7941271]
[1756517758703,0.14675074,108200.0,108190.0,0.7941271]
[1756517759405,0.14675074,108200.0,108190.0,1.1365413]
[1756517759606,0.04675074,108200.0,108190.0,0.8865413]
[1756517760910,0.04675074,108200.0,108190.0,1.6408871]
[1756517763107,0.04675074,108200.0,108190.0,1.6408471]
[1756517764505,0.04675074,108200.0,108190.0,0.7941271]
[1756517764698,0.04675074,108200.0,108190.0,1.6408471]
[1756517770208,0.04675074,108200.0,108190.0,0.7941271]
[1756517770409,0.06834074,108200.0,108190.0,1.6408071]
[1756517770810,0.04675074,108200.0,108190.0,1.6408071]
[1756517772013,0.04675074,108200.0,108190.0,0.43745207]
[1756517772014,0.35217074,108200.0,108190.0,0.43745207]
[1756517772213,0.70884577,108200.0,108190.0,1.28413207]
[1756517772415,1.06964577,108200.0,108180.0,0.03284]
[1756517772713,1.02289503,108190.0,108180.0,0.05424]
[1756517772903,1.02289503,108190.0,108180.0,0.0214]
[1756517773105,0.66622,108190.0,108180.0,0.0214]
[1756517773303,0.03383,108180.0,108170.0,0.79264556]
[1756517773503,0.05542,108180.0,108170.0,0.79264556]
[1756517774512,0.66209503,108180.0,108170.0,0.43597053]
[1756517774715,0.30542,108180.0,108170.0,0.79264556]
[1756517775015,0.30542,108180.0,108170.0,0.77171503]
[1756517775916,0.30542,108180.0,108170.0,0.41504]
[1756517776114,0.05542,108170.0,108160.0,0.04201505]
[1756517776316,0.77289503,108170.0,108160.0,0.04201505]
[1756517776511,0.77289503,108170.0,108160.0,0.07485505]
[1756517776719,0.41622,108170.0,108160.0,0.07485505]
[1756517777316,0.05542,108170.0,108160.0,0.07485505]
[1756517777714,0.05542,108170.0,108160.0,0.05424]
[1756517778325,0.05642,108170.0,108160.0,0.05424]
[1756517778820,0.05642,108170.0,108160.0,0.41091503]
[1756517779712,0.05642,108170.0,108160.0,0.05424]
[1756517779713,0.41722,108170.0,108160.0,0.05424]
[1756517780319,0.77389503,108170.0,108160.0,0.05424]
[1756517780519,0.99006503,108170.0,108150.0,0.39364]
[1756517780712,0.05542,108160.0,108150.0,0.05424]
[1756517785625,0.05542,108160.0,108150.0,0.41091503]
[1756517787121,0.05642,108160.0,108150.0,0.41091503]
[1756517789630,0.05642,108160.0,108150.0,0.05424]
[1756517789822,0.05642,108160.0,108150.0,0.41091503]
[1756517790018,1.42612675,108170.0,108160.0,0.05424]
[1756517790223,1.44771675,108170.0,108160.0,0.05424]
[1756517791729,1.44971675,108170.0,108160.0,0.05424]
[1756517792032,1.48189675,108170.0,108160.0,0.05424]
[1756517792930,1.48193675,108170.0,108160.0,0.05424]
[1756517794133,1.48193675,108170.0,108160.0,0.0214]
[1756517795030,1.48193675,108170.0,108160.0,0.05556]
[1756517795332,1.48193675,108170.0,108160.0,0.0214]
[1756517795534,1.73193675,108170.0,108150.0,0.03416]
[1756517795733,0.77193503,108160.0,108150.0,0.04143379]
[1756517795932,0.77193503,108160.0,108150.0,0.02326]
[1756517796136,0.05446,108150.0,108140.0,0.40481826]
[1756517796333,0.90146,108150.0,108140.0,0.04401826]
[1756517796635,0.90146,108150.0,108140.0,0.40481826]
[1756517796934,0.90146,108150.0,108140.0,0.76149329]
[1756517797732,0.90146,108150.0,108140.0,0.79565329]
[1756517798335,0.05446,108150.0,108140.0,0.79565329]
[1756517798535,0.9015,108150.0,108140.0,0.79565329]
[1756517800136,0.97711299,108150.0,108140.0,0.79565329]
[1756517801332,0.13007299,108150.0,108140.0,0.79565329]
[1756517801537,0.97711299,108150.0,108140.0,0.79565329]
[1756517802438,1.00015886,108150.0,108140.0,0.79565329]
[1756517805045,0.96797886,108150.0,108140.0,1.04565329]
[1756517805233,0.12093886,108150.0,108140.0,1.04565329]
[1756517805743,0.15311886,108150.0,108140.0,1.04565329]
[1756517808146,1.17932464,108160.0,108140.0,1.04565329]
[1756517808445,0.02228,108150.0,108140.0,0.79565329]
[1756517809049,0.37895503,108150.0,108140.0,0.05742]
[1756517809242,1.22595503,108150.0,108140.0,0.05742]
[1756517809743,0.94159486,108150.0,108140.0,0.05742]
[1756517810248,0.96855486,108150.0,108140.0,0.05742]
[1756517813446,0.12155486,108150.0,108140.0,0.05742]
[1756517813650,0.96855486,108150.0,108140.0,0.41822]
[1756517813844,0.96855486,108150.0,108140.0,0.77489503]
[1756517815851,0.94159486,108150.0,108140.0,0.77489503]
[1756517816049,0.09459486,108150.0,108140.0,0.77489503]
[1756517816657,0.12155486,108150.0,108140.0,0.77489503]
[1756517817350,0.09459486,108150.0,108140.0,0.77489503]
[1756517820057,0.11754936,108150.0,108140.0,0.77489503]
[1756517820358,0.14450936,108150.0,108140.0,0.41822]
[1756517820552,0.14450936,108150.0,108140.0,0.77489503]
[1756517821860,0.14450936,108150.0,108140.0,0.41822]
[1756517822155,0.50118439,108150.0,108140.0,0.41822]
[1756517822358,0.31762875,108150.0,108140.0,0.41822]
[1756517822756,1.56447503,108160.0,108150.0,0.03474]
[1756517822957,1.56447503,108160.0,108150.0,0.05723]
[1756517823159,1.56443503,108160.0,108150.0,0.05723]
[1756517824762,0.71747503,108160.0,108150.0,0.05723]
[1756517824957,1.56543503,108160.0,108150.0,0.05723]
[1756517825558,1.56543503,108160.0,108150.0,0.02249]
[1756517826164,1.56543503,108160.0,108150.0,0.05723]
[1756517827572,0.71847503,108160.0,108150.0,0.05723]
[1756517827766,1.56539503,108160.0,108150.0,0.05723]
[1756517828165,1.56539503,108160.0,108150.0,0.02249]
[1756517828368,0.00622,108150.0,108140.0,0.05723]
[1756517828576,0.00622,108150.0,108110.0,0.7137313]
[1756517828577,0.00622,108140.0,108110.0,0.7137313]
[1756517828870,0.00622,108140.0,108120.0,0.37916503]
[1756517828871,0.05519,108130.0,108120.0,0.37916503]
[1756517829366,0.77266503,108130.0,108120.0,0.27249]
[1756517830368,0.41599,108130.0,108120.0,0.27249]
[1756517830570,0.41599,108130.0,108120.0,0.30723]
[1756517830770,0.41599,108130.0,108120.0,0.66390503]
[1756517831875,0.41599,108130.0,108120.0,0.41590503]
[1756517833073,0.48854752,108130.0,108120.0,0.41590503]
[1756517835577,0.12774752,108130.0,108120.0,0.41590503]
[1756517835973,0.09459752,108130.0,108120.0,1.38338006]
[1756517837576,0.07255752,108130.0,108120.0,1.38338006]
[1756517837874,1.26295,108140.0,108130.0,0.05723]
[1756517838075,1.26295,108140.0,108130.0,0.41390503]
[1756517840979,1.26295,108140.0,108130.0,0.41490503]
[1756517841274,0.41599,108140.0,108130.0,0.41490503]
[1756517841479,0.41599,108140.0,108130.0,0.30823]
[1756517841480,0.90215,108140.0,108130.0,0.30823]
[1756517841676,1.26295,108140.0,108130.0,0.30823]
[1756517841982,1.33843686,108140.0,108130.0,0.66490503]
[1756517842180,0.97763686,108140.0,108130.0,0.30823]
[1756517842479,0.97763686,108140.0,108130.0,0.66490503]
[1756517845585,0.13067686,108140.0,108130.0,0.66490503]
[1756517848388,0.13067686,108140.0,108130.0,0.41490503]
[1756517848687,0.01399,108140.0,108130.0,0.41490503]
[1756517850690,0.02273,108140.0,108130.0,0.41490503]
[1756517851191,0.09735158,108140.0,108130.0,0.41490503]
[1756517857592,0.08861158,108140.0,108130.0,0.41490503]
[1756517857896,0.09844158,108140.0,108130.0,0.41490503]
[1756517859698,0.08861158,108140.0,108130.0,0.41490503]
[1756517860098,0.09844158,108140.0,108130.0,0.41490503]
[1756517862604,0.08861158,108140.0,108130.0,0.41490503]
[1756517863604,0.09844158,108140.0,108130.0,0.41490503]
[1756517864902,0.08861158,108140.0,108130.0,0.41490503]
[1756517865303,0.08861158,108140.0,108130.0,0.77570503]
[1756517867902,0.09844158,108140.0,108130.0,0.77570503]
[1756517869306,0.08861158,108140.0,108130.0,0.77570503]
[1756517871005,0.08861158,108140.0,108130.0,0.8423038]
[1756517871305,0.08861158,108140.0,108130.0,0.84245786]
[1756517871806,0.08861158,108140.0,108130.0,0.48562877]
[1756517872103,0.07462158,108140.0,108130.0,0.84245786]
[1756517872305,1.62818746,108150.0,108140.0,0.06055]
[1756517872606,0.80414028,108150.0,108140.0,0.41737909]
[1756517872805,1.65086028,108150.0,108140.0,0.41737909]
[1756517875702,1.72505348,108150.0,108140.0,0.41737909]
[1756517878206,1.72505348,108150.0,108140.0,0.06055]
[1756517878506,1.72505348,108150.0,108140.0,0.41737909]
[1756517880211,1.72505348,108150.0,108140.0,0.06055]
[1756517880506,1.72505348,108150.0,108140.0,0.41737909]
[1756517882306,0.87833348,108150.0,108140.0,0.41737909]
[1756517882608,1.42609511,108150.0,108140.0,0.77420818]
[1756517885003,1.42609511,108150.0,108140.0,0.41737909]
[1756517887506,1.42605511,108150.0,108140.0,0.41737909]
[1756517889920,0.22258602,108150.0,108140.0,0.43810389]
[1756517890117,1.42601511,108150.0,108140.0,0.43810389]
[1756517896723,1.06918602,108150.0,108140.0,0.43810389]
[1756517896914,1.42601511,108150.0,108140.0,0.43810389]
[1756517897816,0.22258602,108150.0,108140.0,0.43810389]
[1756517898017,0.1741932,108150.0,108140.0,1.40573298]
[1756517898226,0.0741932,108150.0,108140.0,1.40573298]
[1756517898421,0.00773,108150.0,108140.0,1.40573298]
[1756517899124,0.0824187,108150.0,108140.0,1.40573298]
[1756517901829,0.0947887,108150.0,108140.0,0.6920748]
[1756517902016,0.0947887,108150.0,108140.0,1.40573298]
[1756517902222,0.0870587,108150.0,108140.0,0.6920748]
[1756517902426,0.0870587,108150.0,108140.0,1.40573298]
[1756517904229,0.0746887,108150.0,108140.0,1.40573298]
[1756517904429,1.57191909,108160.0,108140.0,1.40573298]
[1756517904629,1.32746,108160.0,108150.0,0.41620909]
[1756517904931,1.70736335,108160.0,108150.0,0.41620909]
[1756517907031,1.70736335,108160.0,108150.0,0.05938]
[1756517907327,1.70736335,108160.0,108150.0,0.41620909]
[1756517907638,1.70836335,108160.0,108150.0,0.41620909]
[1756517909039,1.78269754,108160.0,108150.0,0.41620909]
[1756517911447,1.42586845,108160.0,108150.0,0.41620909]
[1756517911636,1.78269754,108160.0,108150.0,0.41620909]
[1756517914841,1.75962328,108160.0,108150.0,0.41620909]
[1756517916743,1.75962328,108160.0,108140.0,0.0445148]
[1756517916744,0.01862,108150.0,108140.0,0.0445148]
[1756517916949,0.01862,108150.0,108130.0,0.03431]
[1756517916950,0.01862,108140.0,108130.0,0.0581]
[1756517917243,1.58256909,108140.0,108130.0,0.41492909]
[1756517918034,0.86494,108140.0,108130.0,0.41492909]
[1756517919848,0.86494,108140.0,108130.0,0.41592909]
[1756517921149,1.22176909,108140.0,108130.0,0.41592909]
[1756517921343,1.22176909,108140.0,108130.0,0.0591]
[1756517921540,1.22176909,108140.0,108130.0,0.41592909]
[1756517923244,1.24484583,108140.0,108130.0,0.41592909]
[1756517924047,1.22176909,108140.0,108130.0,0.41592909]
[1756517926550,1.22179467,108140.0,108130.0,0.41595467]
[1756517929653,1.02568762,108140.0,108130.0,0.41595467]
[1756517930446,1.04875914,108140.0,108130.0,0.41595467]
[1756517931946,0.02307152,108140.0,108130.0,0.41595467]
[1756517932150,0.86935152,108140.0,108130.0,0.41595467]
[1756517932348,0.86935152,108140.0,108130.0,1.13360934]
[1756517932543,0.02307152,108140.0,108130.0,1.38360934]
[1756517932744,0.66196,108150.0,108140.0,0.0581]
[1756517933049,1.09709419,108160.0,108150.0,0.0581]
[1756517933353,1.19709419,108160.0,108150.0,0.41495467]
[1756517933659,1.38141419,108160.0,108150.0,0.41495467]
[1756517935554,0.53513419,108160.0,108150.0,0.41495467]
[1756517935745,1.38241419,108160.0,108150.0,0.41495467]
[1756517937352,0.53613419,108160.0,108150.0,0.41495467]
[1756517937651,0.17533419,108160.0,108150.0,1.13260934]
[1756517938047,0.17533419,108160.0,108150.0,1.38260934]
[1756517938655,0.17433419,108160.0,108150.0,1.38260934]
[1756517939151,0.17433419,108160.0,108150.0,1.13260934]
[1756517939348,0.17433419,108160.0,108150.0,1.1321934]
[1756517939857,0.17433419,108160.0,108150.0,0.4189]
[1756517940156,0.17433419,108160.0,108150.0,0.7755467]
[1756517940758,0.17433419,108160.0,108150.0,0.4147467]
[1756517941151,0.17433419,108160.0,108150.0,0.0581]
[1756517941456,0.17433419,108160.0,108150.0,0.4147467]
[1756517943752,0.17433419,108160.0,108150.0,0.7755467]
[1756517953161,0.17433419,108160.0,108150.0,1.6216267]
[1756517953362,0.17433419,108160.0,108150.0,0.7755467]
[1756517959173,0.17433419,108160.0,108150.0,1.6215867]
[1756517959767,0.17433419,108160.0,108150.0,0.7755467]
[1756517959971,0.17433419,108160.0,108150.0,1.6215467]
[1756517961259,0.17433419,108160.0,108150.0,1.62158253]
[1756517961967,0.17433419,108160.0,108150.0,0.77558253]
[1756517962167,0.17433419,108160.0,108150.0,1.62158253]
[1756517962565,1.14181672,108160.0,108150.0,0.41478253]
[1756517962858,1.52155622,108160.0,108150.0,0.02379]
[1756517964060,1.52255622,108160.0,108150.0,0.02379]
[1756517964267,1.52255622,108160.0,108140.0,0.03447]
[1756517964470,1.56348253,108150.0,108140.0,0.41396253]
[1756517964667,1.5865395,108150.0,108140.0,0.41396253]
[1756517964865,1.8365395,108150.0,108130.0,0.05728]
[1756517965173,0.35668253,108140.0,108130.0,0.41396253]
[1756517965467,0.02305697,108140.0,108130.0,0.41417327]
[1756517966865,0.02305697,108140.0,108130.0,0.41517327]
[1756517967572,0.02305697,108140.0,108130.0,0.41417327]
[1756517967772,0.02305697,108140.0,108130.0,0.05828]
[1756517968474,0.02305697,108140.0,108130.0,0.41517327]
[1756517973276,1.56369327,108150.0,108130.0,0.38070327]
[1756517973575,1.56369327,108150.0,108140.0,0.06018]
[1756517975276,1.5866935,108150.0,108140.0,0.06018]
[1756517977578,1.56369327,108150.0,108140.0,0.06018]
[1756517980784,1.22979882,108150.0,108140.0,0.06018]
[1756517980974,1.22979882,108150.0,108140.0,0.41707327]
[1756517982186,1.58669209,108150.0,108140.0,0.41707327]
[1756517982685,1.58669209,108150.0,108140.0,0.06018]
[1756517985285,1.58663222,108150.0,108140.0,0.4170134]
[1756517990185,0.38379882,108150.0,108140.0,0.7738468]
[1756517990380,0.86895882,108150.0,108140.0,1.0238468]
[1756517990686,0.84596,108150.0,108140.0,1.0238468]
[1756517990982,1.02029419,108160.0,108150.0,0.0807379]
[1756517991182,1.02029419,108160.0,108150.0,0.4375713]
[1756517991377,1.02029419,108160.0,108150.0,0.43744079]
[1756517992682,1.02129419,108160.0,108150.0,0.43744079]
[1756517993293,1.04435473,108160.0,108150.0,0.43744079]
[1756517994892,1.04435473,108160.0,108150.0,0.0807379]
[1756517995188,1.02129419,108160.0,108150.0,0.43744079]
[1756517996393,0.17533419,108160.0,108150.0,0.43744079]
[1756517996689,1.02117419,108160.0,108150.0,0.68744079]
[1756517996886,1.02117419,108160.0,108150.0,0.3307379]
[1756517997093,1.02117419,108160.0,108150.0,0.68744079]
[1756517999101,1.02017419,108160.0,108150.0,0.68744079]
[1756517999292,1.02017419,108160.0,108150.0,0.43744079]
[1756517999902,1.02117419,108160.0,108150.0,0.43744079]
[1756518000400,1.38197419,108160.0,108150.0,0.43744079]
[1756518002501,0.17533419,108160.0,108150.0,0.43744079]
[1756518002700,1.02105419,108160.0,108150.0,0.68744079]
[1756518003203,0.17533419,108160.0,108150.0,0.68744079]
[1756518004205,0.17533419,108160.0,108150.0,0.3307379]
[1756518004407,0.17533419,108160.0,108150.0,0.68744079]
[1756518004899,0.17433419,108160.0,108150.0,0.68744079]
[1756518005708,0.17533419,108160.0,108150.0,0.68744079]
[1756518007203,0.17533419,108160.0,108150.0,0.0807379]
[1756518007404,0.89283708,108160.0,108150.0,0.0807379]
[1756518007608,0.89283708,108160.0,108150.0,0.02433]
[1756518008306,0.02775,108150.0,108140.0,0.04286603]
[1756518008605,1.59085289,108150.0,108140.0,0.02213]
[1756518009096,1.83018289,108150.0,108130.0,0.39342289]
[1756518009303,0.02775,108140.0,108130.0,0.41555289]
[1756518009707,0.38445289,108140.0,108130.0,0.05885]
[1756518010007,0.02775,108140.0,108130.0,0.05885]
[1756518011006,0.02775,108140.0,108130.0,0.41555289]
[1756518011208,0.02775,108140.0,108130.0,0.05885]
[1756518011401,0.02775,108140.0,108130.0,0.05985]
[1756518013311,0.0507963,108140.0,108130.0,0.05985]
[1756518014015,0.0507963,108140.0,108130.0,0.41655289]
[1756518019707,0.0401263,108140.0,108130.0,0.41655289]
[1756518019914,0.0230463,108140.0,108130.0,0.41655289]
[1756518020114,1.57322289,108150.0,108130.0,0.41655289]
[1756518020416,1.61247256,108150.0,108140.0,0.05885]
[1756518020712,1.25576967,108150.0,108140.0,0.41555289]
[1756518022209,1.25576967,108150.0,108140.0,0.05885]
[1756518023610,1.25576967,108150.0,108140.0,0.41555289]
[1756518023810,1.61247256,108150.0,108140.0,0.05885]
[1756518025015,1.61447256,108150.0,108140.0,0.05885]
[1756518027215,1.61447256,108150.0,108140.0,0.07935477]
[1756518027513,1.61443256,108150.0,108140.0,0.07935477]
[1756518028918,0.76887256,108150.0,108140.0,0.07935477]
[1756518029214,1.61443256,108150.0,108140.0,0.07935477]
[1756518029820,1.61443256,108150.0,108140.0,0.43605766]
[1756518031223,1.25772967,108150.0,108140.0,0.07935477]
[1756518031415,1.61443256,108150.0,108140.0,0.07935477]
[1756518031615,1.61439256,108150.0,108140.0,0.07935477]
[1756518031919,1.25768967,108150.0,108140.0,0.07935477]
[1756518032121,1.61439256,108150.0,108140.0,0.07935477]
[1756518032721,1.25768967,108150.0,108140.0,0.07935477]
[1756518032925,1.61439256,108150.0,108140.0,0.43605766]
[1756518033316,1.61451123,108150.0,108140.0,0.43617633]
[1756518036821,0.76899123,108150.0,108140.0,0.43617633]
[1756518037125,1.25764967,108150.0,108140.0,0.79299789]
[1756518037325,1.25764967,108150.0,108140.0,0.07935477]
[1756518037518,1.25764967,108150.0,108140.0,0.79299789]
[1756518038229,0.04936967,108150.0,108140.0,1.04299789]
[1756518038526,0.84648,108150.0,108140.0,1.04299789]
[1756518039024,0.8561,108150.0,108140.0,1.04299789]
[1756518039327,0.87149,108150.0,108140.0,0.68609265]
[1756518041027,0.84644,108150.0,108140.0,1.04689265]
[1756518041427,0.84544,108150.0,108140.0,1.04689265]
[1756518042027,0.85506,108150.0,108140.0,1.04689265]
[1756518042928,0.00962,108150.0,108140.0,1.04689265]
[1756518044729,0.01539,108150.0,108140.0,1.04689265]
[1756518049825,0.91894981,108160.0,108140.0,1.04689265]
[1756518050028,1.4028562,108160.0,108150.0,0.41460788]
[1756518050632,1.40285571,108160.0,108150.0,0.41460788]
[1756518052234,1.40385571,108160.0,108150.0,0.41460788]
[1756518059333,1.76059749,108160.0,108150.0,0.41461178]
[1756518060535,0.91519749,108160.0,108150.0,0.41461178]
[1756518060731,1.76123749,108160.0,108150.0,0.41461178]
[1756518067442,1.76123749,108160.0,108150.0,0.02272]
[1756518067640,1.76123749,108160.0,108140.0,0.41637338]
[1756518067641,0.00088,108150.0,108140.0,0.43623516]
[1756518067841,0.38072768,108150.0,108140.0,0.43623516]
[1756518068140,0.35762178,108150.0,108140.0,0.43623516]
[1756518068437,0.38074087,108150.0,108140.0,0.43623516]
[1756518069340,0.02399909,108150.0,108140.0,0.43623516]
[1756518069542,0.38174087,108150.0,108140.0,0.43623516]
[1756518070241,0.35862178,108150.0,108140.0,0.43623516]
[1756518070444,0.38174007,108150.0,108140.0,0.43623516]
[1756518070639,0.38174007,108150.0,108140.0,0.79297694]
[1756518071542,0.74254007,108150.0,108140.0,0.04456338]
[1756518071752,0.99254007,108150.0,108140.0,0.02064338]
[1756518073244,0.99254007,108150.0,108140.0,0.00013861]
[1756518074048,0.99220007,108150.0,108130.0,0.39167178]
[1756518074239,1.56342178,108140.0,108130.0,0.41559178]
[1756518074940,1.5865138,108140.0,108130.0,0.38066178]
[1756518075141,0.00088,108130.0,108120.0,0.02392]
[1756518075340,0.71754178,108130.0,108120.0,0.35674178]
[1756518075541,0.77346178,108130.0,108120.0,0.38066178]
[1756518076359,0.77346178,108130.0,108120.0,0.02392]
[1756518076644,0.77346178,108130.0,108120.0,0.38066178]
[1756518077146,0.77346178,108130.0,108120.0,0.41559178]
[1756518077350,0.41672,108130.0,108120.0,0.05885]
[1756518078044,0.41772,108130.0,108120.0,0.05885]
[1756518080844,0.41772,108130.0,108120.0,0.41580429]
[1756518081648,1.22252,108130.0,108120.0,0.41580429]
[1756518081948,1.22252,108130.0,108120.0,0.05885]
[1756518082147,1.22252,108130.0,108120.0,0.41580429]
[1756518084548,1.22252,108130.0,108120.0,0.05885]
[1756518084849,1.22252,108130.0,108120.0,0.41580429]
[1756518086844,1.22252,108130.0,108120.0,0.05885]
[1756518087050,1.22252,108130.0,108120.0,0.41580429]
[1756518093251,1.22252,108130.0,108120.0,0.05885]
[1756518093452,1.22252,108130.0,108120.0,0.41580429]
[1756518093655,1.22252,108130.0,108120.0,0.05885]
[1756518093849,1.22252,108130.0,108120.0,0.41580429]
[1756518095156,1.26264,108130.0,108120.0,0.41580429]
[1756518097359,1.61955338,108130.0,108120.0,0.77267676]
[1756518099057,1.61955338,108130.0,108120.0,0.02392]
[1756518099253,1.61955338,108130.0,108120.0,0.77221676]
[1756518102257,1.26264,108130.0,108120.0,0.77221676]
[1756518102568,1.61955338,108130.0,108120.0,0.77221676]
[1756518103256,1.64264243,108130.0,108120.0,0.77221676]
[1756518103462,1.28572905,108130.0,108120.0,0.77221676]
[1756518103663,1.64264243,108130.0,108120.0,0.77221676]
[1756518105060,1.28572905,108130.0,108120.0,0.77221676]
[1756518105262,1.64264243,108130.0,108120.0,0.77221676]
[1756518106163,1.64264243,108130.0,108120.0,0.02392]
[1756518106458,0.05833,108120.0,108110.0,0.43904804]
[1756518106662,0.05833,108120.0,108110.0,0.79596142]
[1756518107057,0.05833,108120.0,108110.0,0.43904804]
[1756518107262,0.08241219,108120.0,108110.0,0.79596142]
[1756518108166,0.08241219,108120.0,108110.0,0.43904804]
[1756518108369,0.08241219,108120.0,108110.0,0.79596142]
[1756518110160,0.08241219,108120.0,108110.0,0.43904804]
[1756518110359,0.08241219,108120.0,108110.0,0.79596142]
[1756518115064,0.04715219,108120.0,108110.0,0.79596142]
[1756518115369,0.04715219,108120.0,108110.0,0.43904804]
[1756518115570,0.04715219,108120.0,108110.0,1.1528748]
[1756518116372,0.13962629,108120.0,108110.0,1.1528748]
[1756518126579,0.13962629,108120.0,108110.0,1.9985148]
[1756518126779,0.17333629,108120.0,108110.0,1.9985148]
[1756518127479,0.17333629,108120.0,108110.0,1.1528748]
[1756518127681,0.17333629,108120.0,108110.0,1.64132142]
[1756518130278,0.17333629,108120.0,108110.0,0.79596142]
[1756518130478,0.17333629,108120.0,108110.0,1.64104142]
[1756518130983,1.55076053,108130.0,108110.0,1.60653142]
[1756518131186,1.55076053,108130.0,108120.0,0.41348338]
[1756518131683,1.57252191,108130.0,108120.0,0.41348338]
[1756518133584,1.57352191,108130.0,108120.0,0.41348338]
[1756518134889,1.59662078,108130.0,108120.0,0.41348338]
[1756518137987,1.2397074,108130.0,108120.0,0.41348338]
[1756518138190,1.59662078,108130.0,108120.0,0.41348338]
[1756518139491,1.59574078,108130.0,108120.0,0.41348338]
[1756518139791,0.3939474,108130.0,108120.0,0.77039676]
[1756518139979,1.2388274,108130.0,108120.0,0.05657]
[1756518140184,1.2388274,108130.0,108120.0,0.77039676]
[1756518140690,1.59574078,108130.0,108120.0,0.77039676]
[1756518140895,1.59671078,108130.0,108120.0,0.77039676]
[1756518141981,1.2397974,108130.0,108120.0,0.77039676]
[1756518142188,1.59671078,108130.0,108120.0,0.77039676]
[1756518142396,1.59771078,108130.0,108120.0,0.77039676]
[1756518143393,0.04586025,108130.0,108120.0,1.13119676]
[1756518143594,0.89074025,108130.0,108120.0,1.13119676]
[1756518143894,0.89150025,108130.0,108120.0,1.13119676]
[1756518145500,0.04662025,108130.0,108120.0,1.13119676]
[1756518146196,0.04586025,108130.0,108120.0,1.13119676]
[1756518146400,0.04486025,108130.0,108120.0,1.97607676]
[1756518147895,0.04486025,108130.0,108120.0,2.58299014]
[1756518148100,0.02176138,108130.0,108120.0,2.58299014]
[1756518148296,1.20581861,108140.0,108130.0,0.03321]
[1756518148498,1.22890112,108140.0,108130.0,0.77039676]
[1756518148691,0.38523112,108140.0,108130.0,0.77039676]
[1756518149198,0.38402112,108140.0,108130.0,0.77039676]
[1756518149398,0.38523112,108140.0,108130.0,0.77039676]
[1756518149905,0.38599112,108140.0,108130.0,0.77039676]
[1756518151101,0.40780827,108140.0,108130.0,0.05657]
[1756518151291,0.40780827,108140.0,108130.0,0.41348338]
[1756518152402,0.04700827,108140.0,108130.0,0.77428338]
[1756518153403,0.02392576,108140.0,108130.0,0.77428338]
[1756518153997,0.02195576,108140.0,108130.0,1.13119676]
[1756518155398,0.02295576,108140.0,108130.0,1.13119676]
[1756518156202,0.02195576,108140.0,108130.0,1.13119676]
[1756518157404,0.0924517,108150.0,108130.0,1.15208224]
[1756518157602,0.2366056,108150.0,108140.0,0.76838676]
[1756518158306,0.2589056,108150.0,108140.0,0.76838676]
[1756518158506,0.2134656,108150.0,108140.0,1.12918676]
[1756518164610,0.2134656,108150.0,108140.0,1.97402676]
[1756518172611,0.2134656,108150.0,108140.0,1.2602]
[1756518172817,0.2134656,108150.0,108140.0,1.97402676]
[1756518174918,0.2134656,108150.0,108140.0,1.2602]
[1756518175118,0.2134656,108150.0,108140.0,1.97402676]
[1756518181724,0.2347256,108150.0,108140.0,1.2602]
[1756518181925,0.2134656,108150.0,108140.0,1.97402676]
[1756518182126,0.2347256,108150.0,108140.0,1.12918676]
[1756518182328,0.2574856,108150.0,108140.0,1.97386676]
[1756518186727,0.2574856,108150.0,108140.0,1.12918676]
[1756518186929,0.2574856,108150.0,108140.0,1.97386676]
[1756518190132,0.2362256,108150.0,108140.0,1.97386676]
[1756518192030,0.2362256,108150.0,108140.0,1.12918676]
[1756518192224,0.2362256,108150.0,108140.0,1.97382676]
[1756518193327,0.25931811,108150.0,108140.0,1.97382676]
[1756518194432,0.23655811,108150.0,108140.0,1.97382676]
[1756518198138,0.23655811,108150.0,108140.0,1.26]
[1756518198434,0.23655811,108150.0,108140.0,1.97382676]
[1756518203341,0.2134656,108150.0,108140.0,1.97382676]
[1756518207540,0.2134656,108150.0,108140.0,1.12918676]
[1756518207742,0.2134656,108150.0,108140.0,1.97378676]
[1756518207944,0.86371898,108150.0,108140.0,0.41147338]
[1756518208144,1.24762199,108150.0,108140.0,0.05456]
[1756518209243,1.24862199,108150.0,108140.0,0.05456]
[1756518209631,1.24862199,108150.0,108140.0,0.02181]
[1756518210138,1.24962199,108150.0,108140.0,0.02181]
[1756518210337,1.24962199,108150.0,108140.0,0.05548]
[1756518213742,1.24962199,108150.0,108140.0,0.41239338]
[1756518213942,1.24962199,108150.0,108140.0,0.02181]
[1756518219954,1.07734938,108150.0,108140.0,0.02181]
[1756518220155,1.05717029,108150.0,108140.0,0.02181]
[1756518220356,1.15717029,108150.0,108140.0,0.02181]
[1756518221457,0.04108,108140.0,108130.0,0.41362338]
[1756518221658,1.24255338,108140.0,108130.0,0.41362338]
[1756518222148,1.24255338,108140.0,108120.0,0.05671]
[1756518222149,0.04108,108130.0,108120.0,0.05671]
[1756518222348,0.04108,108130.0,108120.0,1.13133676]
[1756518222558,0.86558,108130.0,108120.0,1.13133676]
[1756518223058,0.02102,108130.0,108120.0,1.13133676]